bitfinex/quotes_BTCUSD_20241103
["timestamp","ask_amount","ask_price","bid_price","bid_amount"]
[1730603034674,0.04786496,68091.0,68090.0,0.014]
[1730603034675,0.19472696,68091.0,68090.0,0.014]
[1730603034891,0.28122696,68091.0,68090.0,0.014]
[1730603035113,0.28122696,68091.0,68082.0,0.147711]
[1730603035114,0.00366434,68083.0,68082.0,0.147711]
[1730603035314,0.04786496,68083.0,68082.0,0.147711]
[1730603035537,0.56194496,68083.0,68082.0,0.147711]
[1730603037290,0.5833376,68083.0,68082.0,0.014831]
[1730603037564,0.5833376,68083.0,68082.0,0.163712]
[1730603037774,0.5833376,68083.0,68082.0,0.000831]
[1730603037976,0.5833376,68083.0,68082.0,0.014831]
[1730603038400,0.56194496,68083.0,68082.0,0.000831]
[1730603038597,0.56194496,68083.0,68082.0,0.149712]
[1730603038828,0.56194496,68083.0,68082.0,0.163712]
[1730603039041,0.56194496,68083.0,68082.0,0.161712]
[1730603039253,0.56194496,68083.0,68082.0,0.163712]
[1730603039909,0.58461048,68083.0,68082.0,0.016831]
[1730603040332,0.58461048,68083.0,68082.0,0.002831]
[1730603040531,0.58961048,68083.0,68082.0,0.000831]
[1730603040745,0.58961048,68083.0,68082.0,0.014831]
[1730603040746,0.55775854,68083.0,68082.0,0.014831]
[1730603040944,0.55775854,68083.0,68082.0,0.018831]
[1730603041192,0.55275854,68083.0,68082.0,0.000831]
[1730603041616,0.55275854,68083.0,68082.0,0.018831]
[1730603042159,0.55275854,68083.0,68082.0,0.165712]
[1730603042805,0.51774434,68083.0,68082.0,0.165712]
[1730603043175,0.55272003,68083.0,68082.0,0.165712]
[1730603043375,0.55272003,68083.0,68082.0,0.004831]
[1730603043376,0.60799203,68083.0,68082.0,0.004831]
[1730603043600,0.95288649,68083.0,68082.0,0.018831]
[1730603043884,1.09868353,68083.0,68082.0,0.018831]
[1730603044052,1.23792628,68083.0,68082.0,0.004831]
[1730603044502,1.23792628,68083.0,68082.0,0.014831]
[1730603044907,1.23792628,68083.0,68082.0,0.000831]
[1730603045129,1.09868353,68083.0,68082.0,0.000831]
[1730603045362,1.09868353,68083.0,68082.0,0.004831]
[1730603045777,1.09868353,68083.0,68082.0,0.001831]
[1730603046006,0.80600749,68083.0,68082.0,0.001831]
[1730603046226,0.96688649,68083.0,68082.0,0.002831]
[1730603046437,0.73412003,68083.0,68082.0,0.002831]
[1730603046662,0.56672003,68083.0,68082.0,0.149712]
[1730603047304,0.62373078,68083.0,68082.0,0.148712]
[1730603047794,0.62373078,68083.0,68082.0,0.149712]
[1730603048187,0.62373078,68083.0,68082.0,0.147712]
[1730603048188,0.55272003,68083.0,68082.0,0.147712]
[1730603048625,0.55272003,68083.0,68082.0,0.164712]
[1730603049502,0.55272003,68083.0,68082.0,0.161712]
[1730603049716,0.51774434,68083.0,68082.0,0.147712]
[1730603049939,0.5526975,68083.0,68082.0,0.150712]
[1730603050178,0.5526975,68083.0,68082.0,0.161712]
[1730603050652,0.53118786,68083.0,68082.0,0.147712]
[1730603051134,0.53118786,68083.0,68082.0,0.161712]
[1730603051339,0.51774434,68083.0,68082.0,0.30912158]
[1730603051545,0.51774434,68083.0,68082.0,0.29812158]
[1730603051772,0.51774434,68083.0,68082.0,0.30912158]
[1730603052220,0.51774434,68083.0,68082.0,0.31212158]
[1730603052451,0.51774434,68083.0,68082.0,0.30912158]
[1730603052889,0.56951877,68083.0,68082.0,0.164712]
[1730603053112,0.8278759,68083.0,68082.0,0.014831]
[1730603053569,0.85442554,68083.0,68082.0,0.017831]
[1730603053777,0.85442554,68083.0,68082.0,0.003831]
[1730603054652,1.00130454,68083.0,68082.0,0.000831]
[1730603054881,0.85442554,68083.0,68082.0,0.014831]
[1730603055124,1.00130454,68083.0,68082.0,0.017831]
[1730603055355,1.00130454,68083.0,68082.0,0.014831]
[1730603055577,1.00130454,68083.0,68082.0,0.003831]
[1730603056069,0.79765111,68083.0,68082.0,0.147712]
[1730603056268,0.55275111,68083.0,68082.0,0.150712]
[1730603056804,0.55281996,68083.0,68082.0,0.150712]
[1730603057006,0.55281996,68083.0,68082.0,0.29350904]
[1730603057212,0.53123496,68083.0,68082.0,0.29350904]
[1730603057651,0.53123496,68083.0,68082.0,0.30912158]
[1730603057869,0.51774434,68083.0,68082.0,0.30912158]
[1730603058161,0.51408,68083.0,68082.0,0.29512158]
[1730603058375,0.52808,68083.0,68082.0,0.5749859]
[1730603058788,0.51408,68083.0,68082.0,0.5759859]
[1730603058992,0.51408,68083.0,68082.0,0.5929859]
[1730603059221,0.51408,68083.0,68082.0,0.41212158]
[1730603059477,0.51408,68083.0,68082.0,0.147712]
[1730603059478,0.51774434,68083.0,68082.0,0.147712]
[1730603059715,0.51774434,68083.0,68082.0,0.14932454]
[1730603059955,0.51774434,68083.0,68082.0,0.150712]
[1730603060170,0.51774434,68083.0,68082.0,0.147712]
[1730603060913,0.53123614,68083.0,68082.0,0.161712]
[1730603061114,0.55282066,68083.0,68082.0,0.014831]
[1730603061350,0.55282066,68083.0,68082.0,0.000831]
[1730603061783,0.55282066,68083.0,68082.0,0.017831]
[1730603062208,0.55282066,68083.0,68082.0,0.000831]
[1730603062417,0.69969966,68083.0,68082.0,0.000831]
[1730603062648,0.85391286,68083.0,68082.0,0.014831]
[1730603062944,0.85391286,68083.0,68082.0,0.017831]
[1730603063161,0.85391286,68083.0,68063.0,0.22058661]
[1730603063162,0.00366434,68060.0,68054.0,0.29549254]
[1730603063443,0.51774434,68060.0,68059.0,0.3735414]
[1730603063853,0.51774434,68060.0,68059.0,0.146931]
[1730603064081,0.00366434,68058.0,68054.0,4.512e-05]
[1730603064319,0.58435117,68058.0,68054.0,4.512e-05]
[1730603064564,0.58435117,68058.0,68054.0,0.146941]
[1730603064776,0.58435117,68058.0,68048.0,0.293907]
[1730603064777,0.73467163,68058.0,68048.0,0.293907]
[1730603065011,0.60930209,68058.0,68051.0,0.293894]
[1730603065264,0.53461579,68058.0,68051.0,0.293894]
[1730603065482,0.53461579,68058.0,68053.0,0.146943]
[1730603065695,0.68654879,68058.0,68057.0,0.0120111]
[1730603065940,0.95609943,68058.0,68057.0,0.0120111]
[1730603066136,0.54911463,68058.0,68057.0,0.48522]
[1730603066362,0.54911463,68058.0,68057.0,0.62333675]
[1730603066363,0.51408,68058.0,68057.0,0.62333675]
[1730603066569,0.51408,68058.0,68057.0,0.58522]
[1730603067248,0.51408,68058.0,68057.0,0.59922]
[1730603067910,0.51408,68058.0,68057.0,0.58222]
[1730603068138,0.51408,68058.0,68057.0,0.59922]
[1730603068638,0.51408,68058.0,68057.0,0.31735568]
[1730603068851,0.51408,68058.0,68057.0,0.30635568]
[1730603069072,0.51408,68058.0,68057.0,0.32035568]
[1730603069536,0.51408,68058.0,68057.0,0.17155864]
[1730603069537,0.57086718,68058.0,68057.0,0.17155864]
[1730603069727,0.51774434,68058.0,68057.0,0.17155864]
[1730603070013,0.51774434,68058.0,68057.0,0.1719461]
[1730603070220,0.51774434,68058.0,68057.0,0.0250111]
[1730603070491,0.51774434,68058.0,68057.0,0.0110111]
[1730603070712,0.51774434,68058.0,68057.0,0.0250111]
[1730603071211,0.51774434,68058.0,68057.0,0.0090111]
[1730603071212,0.98680518,68058.0,68057.0,0.0090111]
[1730603071428,0.83487218,68058.0,68057.0,0.0260111]
[1730603071633,0.93453075,68058.0,68057.0,0.0260111]
[1730603071863,0.95606671,68058.0,68057.0,0.0260111]
[1730603072064,0.95606671,68058.0,68057.0,0.0230111]
[1730603072276,0.96706671,68058.0,68057.0,0.0240111]
[1730603072491,1.11289245,68058.0,68057.0,0.0240111]
[1730603072714,1.10189245,68058.0,68057.0,0.0090111]
[1730603072936,1.10189245,68058.0,68057.0,0.0100111]
[1730603072937,1.11289245,68058.0,68057.0,0.0100111]
[1730603073160,0.81513371,68058.0,68057.0,0.0100111]
[1730603073388,0.82013371,68058.0,68057.0,0.0100111]
[1730603074067,0.82413371,68058.0,68057.0,0.0110111]
[1730603074301,0.80474625,68058.0,68057.0,0.1569461]
[1730603074513,0.53121029,68058.0,68057.0,0.1559461]
[1730603074789,0.52874434,68058.0,68057.0,0.1569461]
[1730603075003,0.53274434,68058.0,68057.0,0.1569461]
[1730603075235,0.53274434,68058.0,68057.0,0.1579461]
[1730603075445,0.53974434,68058.0,68057.0,0.1569461]
[1730603075669,0.53974434,68058.0,68056.0,0.17886432]
[1730603075670,0.52874434,68058.0,68056.0,0.17886432]
[1730603075889,0.53274434,68058.0,68057.0,0.150935]
[1730603076148,0.53274434,68058.0,68057.0,0.151755]
[1730603076604,0.52908,68058.0,68057.0,0.151755]
[1730603076844,0.53274434,68058.0,68057.0,0.151755]
[1730603077047,0.53274434,68058.0,68057.0,0.150755]
[1730603077048,0.52874434,68058.0,68057.0,0.150755]
[1730603077254,0.51774434,68058.0,68057.0,0.147755]
[1730603077468,0.51774434,68058.0,68057.0,0.161755]
[1730603077869,0.51774434,68058.0,68057.0,0.147755]
[1730603078262,0.51774434,68058.0,68057.0,0.163755]
[1730603078757,0.51408,68058.0,68057.0,0.163755]
[1730603079009,0.51408,68058.0,68057.0,0.30955204]
[1730603079207,0.51774434,68058.0,68057.0,0.163755]
[1730603079861,0.51408,68058.0,68057.0,0.30955204]
[1730603080519,0.51408,68058.0,68057.0,0.31116458]
[1730603080732,0.24800757,68086.0,68057.0,0.31116458]
[1730603080733,0.00366434,68083.0,68082.0,0.146881]
[1730603080948,0.00366434,68083.0,68082.0,0.14849354]
[1730603081176,0.00366434,68088.0,68087.0,0.14687]
[1730603081389,0.00164,68091.0,68090.0,0.14847654]
[1730603081637,0.00164,68091.0,68090.0,0.25047654]
[1730603081850,0.00164,68091.0,68090.0,0.25141331]
[1730603082308,0.00164,68091.0,68090.0,0.24847654]
[1730603082309,0.51566,68091.0,68090.0,0.24847654]
[1730603083373,0.51566,68091.0,68090.0,0.39427358]
[1730603083593,0.51566,68091.0,68090.0,0.39727358]
[1730603084016,0.51566,68091.0,68090.0,0.41127358]
[1730603084662,0.51566,68091.0,68090.0,0.39727358]
[1730603084889,0.51566,68091.0,68090.0,0.41127358]
[1730603085324,0.51566,68091.0,68090.0,0.39427358]
[1730603085751,0.51566,68091.0,68090.0,0.41027358]
[1730603085974,0.51566,68091.0,68090.0,0.40827358]
[1730603086361,0.51566,68091.0,68090.0,0.41027358]
[1730603086722,0.51566,68091.0,68090.0,0.40827358]
[1730603086951,0.51566,68091.0,68090.0,0.39427358]
[1730603087391,0.51566,68091.0,68090.0,0.40827358]
[1730603087645,0.51566,68091.0,68090.0,0.41027358]
[1730603087851,0.51566,68091.0,68090.0,0.39627358]
[1730603088323,0.51566,68091.0,68090.0,0.41027358]
[1730603088820,0.51566,68091.0,68090.0,0.39627358]
[1730603089046,0.51566,68091.0,68090.0,0.58147356]
[1730603089281,0.51566,68091.0,68090.0,0.58347356]
[1730603089282,0.486288,68091.0,68090.0,0.58347356]
[1730603089528,0.3688,68091.0,68090.0,0.66177356]
[1730603089733,0.339428,68091.0,68090.0,0.66177356]
[1730603089944,0.280684,68091.0,68090.0,0.66177356]
[1730603090149,0.22194,68091.0,68090.0,0.65977356]
[1730603090359,0.22194,68091.0,68090.0,0.67577356]
[1730603091014,0.22194,68091.0,68090.0,0.66177356]
[1730603091219,0.22194,68091.0,68090.0,0.49557358]
[1730603091449,0.22194,68091.0,68090.0,0.41727358]
[1730603091661,0.22194,68091.0,68090.0,0.40127358]
[1730603092103,0.22194,68091.0,68090.0,0.41027358]
[1730603092518,0.22194,68091.0,68090.0,0.40827358]
[1730603092739,0.22194,68091.0,68090.0,0.48847356]
[1730603092948,0.22194,68091.0,68090.0,0.49747356]
[1730603093178,0.22194,68091.0,68090.0,0.49547356]
[1730603093443,0.07508,68091.0,68090.0,0.49547356]
[1730603093653,0.045708,68091.0,68090.0,0.49747356]
[1730603093874,0.00082,68112.0,68107.0,0.24843954]
[1730603094116,0.00082,68112.0,68107.0,0.39423658]
[1730603094320,0.73447661,68108.0,68107.0,0.39423658]
[1730603094538,0.51389,68108.0,68107.0,0.39423658]
[1730603095196,0.51366783,68108.0,68107.0,0.39423658]
[1730603095648,0.51366783,68108.0,68107.0,0.40823658]
[1730603096761,0.51366783,68108.0,68107.0,0.41023658]
[1730603096982,0.51366783,68108.0,68107.0,0.39423658]
[1730603097213,0.51733217,68108.0,68107.0,0.39423658]
[1730603097453,0.51733217,68108.0,68107.0,0.41023658]
[1730603097677,0.51366783,68108.0,68107.0,0.41023658]
[1730603097899,0.51733217,68108.0,68107.0,0.39623658]
[1730603098112,0.51733217,68108.0,68107.0,0.41023658]
[1730603098736,0.51733217,68108.0,68107.0,0.39423658]
[1730603098961,0.51897217,68108.0,68107.0,0.41023658]
[1730603099162,0.51530783,68108.0,68107.0,0.41023658]
[1730603099367,0.51530783,68108.0,68107.0,0.40823658]
[1730603099604,0.51897217,68108.0,68107.0,0.41023658]
[1730603099811,0.51897217,68108.0,68107.0,0.40823658]
[1730603100001,0.51530783,68108.0,68107.0,0.40823658]
[1730603100248,0.51530783,68108.0,68107.0,0.39623658]
[1730603100502,0.51530783,68108.0,68107.0,0.39423658]
[1730603100753,0.51530783,68108.0,68107.0,0.41523658]
[1730603100982,0.00082,68112.0,68111.0,0.1547672]
[1730603101203,0.22959771,68143.0,68128.0,0.25339454]
[1730603101433,0.22959771,68143.0,68128.0,0.5780559]
[1730603101648,0.22959771,68143.0,68128.0,0.57939156]
[1730603101861,0.22959771,68143.0,68135.0,0.25337954]
[1730603102092,0.22959771,68143.0,68135.0,0.40344718]
[1730603102354,0.0090111,68143.0,68142.0,0.25336454]
[1730603102552,0.0090111,68143.0,68142.0,0.58148447]
[1730603102813,1e-07,68143.0,68142.0,0.65766156]
[1730603103285,0.001662,68151.0,68150.0,0.43354752]
[1730603103509,0.001662,68151.0,68150.0,0.57934456]
[1730603103774,1e-06,68151.0,68150.0,0.58134456]
[1730603103944,0.000819,68157.0,68156.0,0.2566702]
[1730603104240,0.000819,68157.0,68156.0,0.40540103]
[1730603104439,1e-06,68157.0,68156.0,0.40246724]
[1730603104660,1e-06,68160.0,68159.0,0.0099482]
[1730603104931,1e-06,68161.0,68160.0,0.2546612]
[1730603105176,1e-06,68161.0,68160.0,0.39912258]
[1730603106347,1e-06,68161.0,68160.0,0.40112258]
[1730603106559,1e-06,68161.0,68160.0,0.39412258]
[1730603106789,1e-06,68161.0,68160.0,0.40112258]
[1730603107045,1e-06,68161.0,68160.0,0.40812258]
[1730603107283,0.00366534,68161.0,68160.0,0.31012258]
[1730603107517,0.08526534,68161.0,68160.0,0.15032554]
[1730603107779,0.08526534,68161.0,68160.0,0.29612258]
[1730603108003,0.08526534,68161.0,68160.0,0.16432554]
[1730603108212,1e-06,68161.0,68160.0,0.31012258]
[1730603108430,1e-06,68161.0,68160.0,0.39412258]
[1730603108877,1e-06,68161.0,68160.0,0.39612258]
[1730603109115,1e-06,68161.0,68160.0,0.39412258]
[1730603109320,1e-06,68161.0,68160.0,0.39612258]
[1730603109748,1e-06,68161.0,68160.0,0.39412258]
[1730603110227,1e-06,68161.0,68160.0,0.40245824]
[1730603110425,1e-06,68161.0,68160.0,0.41645824]
[1730603111079,1e-06,68161.0,68160.0,0.41512258]
[1730603111335,1e-06,68161.0,68160.0,0.40812258]
[1730603111578,1e-06,68161.0,68160.0,0.41312258]
[1730603111806,1e-06,68161.0,68160.0,0.41512258]
[1730603112031,1e-06,68161.0,68160.0,0.41312258]
[1730603112300,1e-06,68161.0,68160.0,0.41445824]
[1730603112537,1e-06,68161.0,68160.0,0.41645824]
[1730603113002,1e-06,68161.0,68160.0,0.41845824]
[1730603113231,1e-06,68161.0,68160.0,0.40245824]
[1730603113689,1e-06,68161.0,68160.0,0.40445824]
[1730603114568,1e-06,68161.0,68160.0,0.41845824]
[1730603114781,1e-06,68161.0,68160.0,0.41645824]
[1730603115248,0.294,68170.0,68169.0,0.00861254]
[1730603115478,0.294,68170.0,68169.0,0.40243924]
[1730603115718,0.294,68170.0,68169.0,0.40043924]
[1730603115945,0.294,68170.0,68169.0,0.40243924]
[1730603116393,0.294,68170.0,68169.0,0.40043924]
[1730603116625,0.294,68170.0,68169.0,0.39910358]
[1730603116875,0.294,68170.0,68169.0,0.41310358]
[1730603117078,0.294,68170.0,68169.0,0.41510358]
[1730603117942,0.294,68170.0,68169.0,0.40110358]
[1730603118169,0.294,68170.0,68169.0,0.41643924]
[1730603118601,0.294,68170.0,68169.0,0.40443924]
[1730603118806,0.294,68170.0,68169.0,0.40243924]
[1730603119030,0.294,68170.0,68169.0,0.41643924]
[1730603119253,0.294,68170.0,68169.0,0.41843924]
[1730603119463,0.294,68170.0,68169.0,0.40443924]
[1730603119917,0.294,68170.0,68169.0,0.41843924]
[1730603120810,0.264662,68170.0,68169.0,0.41843924]
[1730603121027,0.264662,68170.0,68169.0,0.45490835]
[1730603121028,0.07464876,68170.0,68169.0,0.45490835]
[1730603121235,0.001662,68181.0,68180.0,0.2566182]
[1730603121473,0.001662,68181.0,68180.0,0.40241524]
[1730603122412,0.001662,68181.0,68180.0,0.39874191]
[1730603122619,0.22058661,68190.0,68180.0,0.39874191]
[1730603122620,0.22058661,68190.0,68189.0,0.251651]
[1730603122827,0.22058661,68200.0,68199.0,0.146629]
[1730603123045,0.22058661,68200.0,68199.0,0.29242604]
[1730603123286,0.1799,68204.0,68199.0,0.14579704]
[1730603123526,0.1799,68204.0,68203.0,0.146621]
[1730603123527,0.18562513,68204.0,68203.0,0.146621]
[1730603123996,0.1799,68204.0,68203.0,0.146621]
[1730603124456,0.18362513,68204.0,68203.0,0.29241804]
[1730603124671,0.18362513,68204.0,68203.0,0.146621]
[1730603125366,0.18562513,68204.0,68203.0,0.146621]
[1730603125721,0.1799,68204.0,68203.0,0.30641804]
[1730603125823,0.1799,68204.0,68203.0,0.30741804]
[1730603126029,0.18362513,68204.0,68203.0,0.29341804]
[1730603126259,0.18562513,68204.0,68203.0,0.30641804]
[1730603126510,0.18362513,68204.0,68203.0,0.30741804]
[1730603126769,0.18362513,68204.0,68203.0,0.30641804]
[1730603127717,0.18562513,68204.0,68203.0,0.29241804]
[1730603127932,0.18562513,68204.0,68203.0,0.30641804]
[1730603128170,0.18562513,68204.0,68203.0,0.30741804]
[1730603128602,0.18562513,68204.0,68203.0,0.29441804]
[1730603128815,0.18362513,68204.0,68203.0,0.30841804]
[1730603129229,0.18562513,68204.0,68203.0,0.30841804]
[1730603129779,0.18562513,68204.0,68203.0,0.016]
[1730603129780,0.87167564,68204.0,68203.0,0.016]
[1730603130018,0.87167564,68204.0,68169.0,0.17892332]
[1730603130019,0.00572513,68191.0,68190.0,0.36723561]
[1730603130255,0.00372513,68191.0,68190.0,0.51303265]
[1730603130471,0.00572513,68188.0,68187.0,0.146655]
[1730603130911,0.51889513,68188.0,68187.0,0.146655]
[1730603131148,0.51689513,68188.0,68187.0,0.146655]
[1730603131573,0.51889513,68188.0,68187.0,0.146655]
[1730603131783,0.51889513,68188.0,68187.0,0.014]
[1730603132033,0.51889513,68188.0,68187.0,0.016]
[1730603132283,0.78079513,68188.0,68187.0,0.002]
[1730603132535,0.94097285,68188.0,68187.0,0.016]
[1730603133057,0.94097285,68188.0,68187.0,0.014]
[1730603133269,0.94097491,68188.0,68187.0,0.014]
[1730603133517,0.78932431,68188.0,68187.0,0.160655]
[1730603133758,0.78932431,68188.0,68175.0,0.51394661]
[1730603133759,0.00372513,68176.0,68175.0,0.51394661]
[1730603133979,0.51689513,68176.0,68175.0,0.80642465]
[1730603134435,0.51317,68176.0,68175.0,0.80642465]
[1730603134673,0.51317,68176.0,68175.0,0.69083804]
[1730603134910,0.51317,68176.0,68175.0,0.69211291]
[1730603135137,0.51417,68176.0,68175.0,0.71305275]
[1730603135375,0.51417,68176.0,68175.0,0.71405275]
[1730603135586,0.51317,68176.0,68175.0,0.70005275]
[1730603135841,0.425162,68176.0,68175.0,0.70005275]
[1730603136101,0.36749,68176.0,68175.0,0.71405275]
[1730603136565,0.36749,68176.0,68175.0,0.71305336]
[1730603136801,0.22058661,68189.0,68188.0,0.251653]
[1730603137022,0.22058661,68189.0,68188.0,0.39872491]
[1730603137239,0.22058661,68196.0,68195.0,0.246638]
[1730603137487,0.22058661,68196.0,68195.0,0.39243504]
[1730603137705,0.077,68206.0,68202.0,0.146623]
[1730603137967,0.22058661,68214.0,68205.0,0.1]
[1730603137968,0.077001,68213.0,68205.0,0.1]
[1730603138199,0.077001,68213.0,68210.0,0.146606]
[1730603138842,0.01473623,68211.0,68210.0,0.146606]
[1730603139052,0.01473623,68211.0,68210.0,0.29240304]
[1730603139283,0.01473623,68211.0,68210.0,0.146606]
[1730603139538,0.01473623,68211.0,68206.0,0.439843]
[1730603139539,0.00372513,68207.0,68206.0,0.439843]
[1730603139833,0.00372513,68207.0,68206.0,0.58564004]
[1730603139834,0.00572513,68207.0,68206.0,0.58564004]
[1730603140029,0.002,68206.0,68205.0,0.014]
[1730603140303,0.40923913,68206.0,68205.0,0.014]
[1730603140761,0.41923913,68206.0,68205.0,0.014]
[1730603141234,0.00572513,68198.0,68197.0,0.36722061]
[1730603141445,0.00572513,68195.0,68194.0,0.293277]
[1730603141672,0.26262513,68195.0,68194.0,0.439917]
[1730603142554,0.77586513,68195.0,68194.0,0.439917]
[1730603142782,0.77586513,68195.0,68194.0,0.440917]
[1730603143753,0.77586513,68195.0,68194.0,0.001]
[1730603143754,0.85345164,68195.0,68194.0,0.001]
[1730603143981,0.77586513,68195.0,68194.0,0.001]
[1730603144191,0.77586513,68195.0,68194.0,0.015]
[1730603144431,0.92250313,68195.0,68194.0,0.015]
[1730603144674,0.92250313,68195.0,68187.0,0.3012526]
[1730603144675,0.00572513,68194.0,68191.0,0.293292]
[1730603144906,0.002,68192.0,68191.0,0.146646]
[1730603145116,0.51524,68192.0,68191.0,0.146646]
[1730603145778,0.51896513,68192.0,68191.0,0.146646]
[1730603146002,0.51324,68192.0,68191.0,0.30644304]
[1730603146231,0.51324,68192.0,68191.0,0.40744304]
[1730603147415,0.51324,68192.0,68191.0,0.39344304]
[1730603147636,0.51424,68192.0,68191.0,0.64125193]
[1730603147840,0.51424,68192.0,68191.0,0.4797677]
[1730603148056,0.51424,68192.0,68191.0,0.47282112]
[1730603148274,0.51324,68192.0,68191.0,0.62749149]
[1730603148549,0.51424,68192.0,68191.0,0.56787394]
[1730603148777,0.51424,68192.0,68191.0,0.67762029]
[1730603149023,0.51324,68192.0,68191.0,0.67562029]
[1730603149232,0.51324,68192.0,68191.0,0.67662029]
[1730603149467,0.51324,68192.0,68191.0,0.67562029]
[1730603149905,0.51324,68192.0,68191.0,0.56687394]
[1730603150395,0.51324,68192.0,68191.0,0.64940414]
[1730603150613,0.51424,68192.0,68191.0,0.57587394]
[1730603150823,0.51424,68192.0,68191.0,0.5769521]
[1730603151090,0.51324,68192.0,68191.0,0.5629521]
[1730603151329,0.51524,68192.0,68191.0,0.4660406]
[1730603151536,0.51524,68192.0,68191.0,0.62861125]
[1730603151537,0.51324,68192.0,68191.0,0.62861125]
[1730603151763,0.51324,68192.0,68191.0,0.64161125]
[1730603151764,0.51424,68192.0,68191.0,0.64161125]
[1730603152210,0.51424,68192.0,68191.0,0.6426111]
[1730603152416,0.51324,68192.0,68191.0,0.6276111]
[1730603152648,0.51324,68192.0,68191.0,0.56296012]
[1730603153124,0.51324,68192.0,68191.0,0.6504945]
[1730603153329,0.51324,68192.0,68191.0,0.66320966]
[1730603153555,0.51324,68192.0,68191.0,0.69009326]
[1730603153778,0.51324,68192.0,68191.0,0.57401354]
[1730603153779,0.51424,68192.0,68191.0,0.57401354]
[1730603153995,0.51424,68192.0,68191.0,0.59596066]
[1730603154221,0.48123066,68192.0,68191.0,0.59596045]
[1730603154454,0.48123066,68192.0,68191.0,0.70440737]
[1730603154664,0.48123066,68192.0,68191.0,0.59596045]
[1730603154915,0.48123066,68192.0,68191.0,0.59496045]
[1730603155124,0.48123066,68192.0,68191.0,0.57603904]
[1730603155333,0.48123066,68192.0,68191.0,0.66462257]
[1730603155535,0.48123066,68192.0,68191.0,0.57703904]
[1730603156186,0.48123066,68192.0,68191.0,0.66465312]
[1730603156686,0.48123066,68192.0,68191.0,0.57703904]
[1730603157317,0.48123066,68192.0,68191.0,0.66465867]
[1730603157742,0.48123066,68192.0,68191.0,0.57703904]
[1730603159356,0.48123066,68192.0,68191.0,0.48113031]
[1730603159576,0.48123066,68192.0,68191.0,0.41539356]
[1730603159811,0.48123066,68192.0,68191.0,0.45922592]
[1730603159812,0.48323066,68192.0,68191.0,0.45922592]
[1730603160264,0.66845579,68192.0,68191.0,0.35922592]
[1730603160466,0.66845579,68192.0,68191.0,0.30744304]
[1730603160467,0.74845579,68192.0,68191.0,0.30744304]
[1730603161147,0.74845579,68192.0,68191.0,0.161646]
[1730603161394,0.74745579,68192.0,68191.0,0.147646]
[1730603161620,0.74745579,68192.0,68191.0,0.146646]
[1730603161814,0.74927379,68192.0,68191.0,0.161646]
[1730603162271,0.74727379,68192.0,68191.0,0.160646]
[1730603162494,0.74727379,68192.0,68191.0,0.161646]
[1730603162747,0.74927379,68192.0,68191.0,0.015]
[1730603163031,0.74827379,68192.0,68191.0,0.147646]
[1730603163256,0.74827379,68192.0,68191.0,0.160646]
[1730603163257,0.74927379,68192.0,68191.0,0.160646]
[1730603164817,0.82420117,68192.0,68191.0,0.014]
[1730603165028,0.90591779,68192.0,68191.0,0.014]
[1730603165970,0.00572513,68180.0,68176.0,0.22222261]
[1730603166195,0.002,68177.0,68176.0,0.22222261]
[1730603166397,0.002,68177.0,68176.0,0.36890161]
[1730603166619,0.002,68177.0,68176.0,0.148315]
[1730603166911,0.48223066,68177.0,68176.0,0.148315]
[1730603167800,0.48323066,68177.0,68176.0,0.160315]
[1730603168216,0.48323066,68177.0,68176.0,0.161315]
[1730603168434,0.48323066,68177.0,68176.0,0.160315]
[1730603169064,0.48323066,68177.0,68176.0,0.148315]
[1730603169065,0.48223066,68177.0,68176.0,0.148315]
[1730603169292,0.48223066,68177.0,68176.0,0.149315]
[1730603169526,0.48323066,68177.0,68176.0,0.149315]
[1730603169939,0.48223066,68177.0,68176.0,0.149315]
[1730603170415,0.48495579,68177.0,68176.0,0.29511204]
[1730603170677,0.48123066,68177.0,68176.0,0.39411204]
[1730603170904,0.48123066,68177.0,68176.0,0.39511204]
[1730603171327,0.48323066,68177.0,68176.0,0.29511204]
[1730603171748,0.48695579,68177.0,68176.0,0.29411204]
[1730603172002,0.56545579,68177.0,68176.0,0.148315]
[1730603172209,0.56445579,68177.0,68176.0,0.149315]
[1730603172417,0.56445579,68177.0,68176.0,0.148315]
[1730603172627,0.56445579,68177.0,68176.0,0.161315]
[1730603172844,0.56545579,68177.0,68176.0,0.161315]
[1730603173288,0.56445579,68177.0,68176.0,0.148315]
[1730603173525,0.56445579,68177.0,68176.0,0.161315]
[1730603173526,0.62200137,68177.0,68176.0,0.161315]
[1730603173730,0.62200137,68177.0,68176.0,0.014636]
[1730603173964,0.79360137,68177.0,68176.0,0.015636]
[1730603174233,0.79260137,68177.0,68176.0,0.001636]
[1730603174475,0.73605579,68177.0,68176.0,0.002636]
[1730603174903,0.88273279,68177.0,68176.0,0.001636]
[1730603175121,0.88273279,68177.0,68176.0,0.002636]
[1730603175536,0.88873279,68177.0,68176.0,0.015636]
[1730603175738,1.03455853,68177.0,68176.0,0.015636]
[1730603175968,0.88873279,68177.0,68176.0,0.015636]
[1730603176169,0.88773279,68177.0,68176.0,0.002636]
[1730603176584,0.88773279,68177.0,68176.0,0.015636]
[1730603176585,0.89373279,68177.0,68176.0,0.015636]
[1730603176821,0.89373279,68177.0,68159.0,0.146714]
[1730603176822,0.00572513,68162.0,68159.0,0.146714]
[1730603177021,0.00572513,68162.0,68157.0,0.29344]
[1730603177022,0.73605579,68162.0,68160.0,0.146713]
[1730603177236,0.73605579,68162.0,68157.0,0.29344]
[1730603177443,0.73605579,68162.0,68161.0,0.148347]
[1730603177658,0.73605579,68162.0,68161.0,0.001636]
[1730603178112,0.73605579,68162.0,68161.0,0.148347]
[1730603178554,0.81016137,68162.0,68161.0,0.002636]
[1730603178752,0.81016137,68162.0,68161.0,0.001636]
[1730603178958,0.73605579,68162.0,68161.0,0.001636]
[1730603179423,0.88776479,68162.0,68161.0,0.001636]
[1730603180080,0.88776479,68162.0,68161.0,0.002636]
[1730603180299,0.89376479,68162.0,68161.0,0.002636]
[1730603180741,0.89276479,68162.0,68161.0,0.003636]
[1730603180954,0.89276479,68162.0,68161.0,0.001636]
[1730603180955,1.03859053,68162.0,68161.0,0.001636]
[1730603181178,0.17082513,68148.0,68141.0,0.01263763]
[1730603181450,0.17082513,68148.0,68142.0,0.22222461]
[1730603181451,0.39517513,68143.0,68142.0,0.22222461]
[1730603181699,0.97394637,68143.0,68142.0,0.22222461]
[1730603181922,0.97394637,68143.0,68128.0,0.00083]
[1730603181923,0.23009613,68133.0,68128.0,0.00083]